[Event "Titled Tuesday Blitz November 01 Early 2022"]
[White "Hoffmann, Asa"]
[Black "Vusatiuk, Vladimir"]
[WhiteFideId "2001470"]
[BlackFideId "14118610"]
[WhiteElo "2117"]
[BlackElo "2208"]
[Result "1-0"]
[Round "06"]
[TimeControl "180+1"]
[Date "2022.11.02"]
[WhiteClock "0:00:13"]
[BlackClock "0:00:04"]

1. d4 {[%clk 0:02:58]}  Nf6 {[%clk 0:03:00]} 2. Bg5 {[%clk 0:02:51]}  c6 {[%clk 0:02:59]} 3. Nd2 {[%clk 0:02:50]}  d6 {[%clk 0:02:58]} 4. e4 {[%clk 0:02:46]}  Qa5 {[%clk 0:02:51]} 5. Bxf6 {[%clk 0:02:26]}  gxf6 {[%clk 0:02:52]} 6. Nf3 {[%clk 0:02:24]}  f5 {[%clk 0:02:51]} 7. e5 {[%clk 0:02:20]}  dxe5 {[%clk 0:02:37]} 8. Nxe5 {[%clk 0:02:15]}  Nd7 {[%clk 0:02:38]} 9. Nc4 {[%clk 0:02:12]}  Qc7 {[%clk 0:02:37]} 10. c3 {[%clk 0:02:08]}  b5 {[%clk 0:02:35]} 11. Ne3 {[%clk 0:02:05]}  f4 {[%clk 0:02:35]} 12. Nc2 {[%clk 0:01:59]}  Nf6 {[%clk 0:02:35]} 13. Bd3 {[%clk 0:01:56]}  Rg8 {[%clk 0:02:35]} 14. g3 {[%clk 0:01:55]}  Bg4 {[%clk 0:02:33]} 15. f3 {[%clk 0:01:55]}  fxg3 {[%clk 0:02:27]} 16. fxg4 {[%clk 0:01:51]}  g2 {[%clk 0:02:26]} 17. Rg1 {[%clk 0:01:50]}  Qxh2 {[%clk 0:02:26]} 18. Nf3 {[%clk 0:01:35]}  Qg3+ {[%clk 0:02:25]} 19. Ke2 {[%clk 0:01:32]}  Nd5 {[%clk 0:02:21]} 20. Nce1 {[%clk 0:01:18]}  Nf4+ {[%clk 0:02:16]} 21. Kd2 {[%clk 0:01:17]}  Bh6 {[%clk 0:02:15]} 22. Kc2 {[%clk 0:01:17]}  Qf2+ {[%clk 0:02:08]} 23. Qd2 {[%clk 0:01:08]}  Nxd3 {[%clk 0:02:06]} 24. Qxf2 {[%clk 0:00:57]}  Nxf2 {[%clk 0:02:05]} 25. Rxg2 {[%clk 0:00:54]}  Nxg4 {[%clk 0:02:06]} 26. Kb3 {[%clk 0:00:45]}  O-O-O {[%clk 0:01:51]} 27. Nd3 {[%clk 0:00:45]}  f5 {[%clk 0:01:05]} 28. Re1 {[%clk 0:00:41]}  Ne3 {[%clk 0:01:04]} 29. Rh2 {[%clk 0:00:39]}  Ng4 {[%clk 0:01:02]} 30. Rh5 {[%clk 0:00:38]}  Bf8 {[%clk 0:00:41]} 31. Rxh7 {[%clk 0:00:35]}  Nf6 {[%clk 0:00:40]} 32. Rf7 {[%clk 0:00:35]}  Rg3 {[%clk 0:00:37]} 33. Nfe5 {[%clk 0:00:35]}  Kb7 {[%clk 0:00:31]} 34. Nc5+ {[%clk 0:00:34]}  Kb6 {[%clk 0:00:24]} 35. Ne6 {[%clk 0:00:34]}  Rd6 {[%clk 0:00:17]} 36. Nxf8 {[%clk 0:00:33]}  a5 {[%clk 0:00:17]} 37. Nfg6 {[%clk 0:00:29]}  Ne4 {[%clk 0:00:14]} 38. Nxe7 {[%clk 0:00:25]}  a4+ {[%clk 0:00:15]} 39. Ka3 {[%clk 0:00:23]}  Rd8 {[%clk 0:00:08]} 40. Nxf5 {[%clk 0:00:22]}  Nd2 {[%clk 0:00:06]} 41. Nxg3 {[%clk 0:00:19]}  c5 {[%clk 0:00:06]} 42. b3 {[%clk 0:00:18]}  axb3 {[%clk 0:00:05]} 43. axb3 {[%clk 0:00:17]}  cxd4 {[%clk 0:00:05]} 44. c4 {[%clk 0:00:17]}  Ka5 {[%clk 0:00:03]} 45. Kb2 {[%clk 0:00:16]}  Kb4 {[%clk 0:00:04]} 46. Nd3+ {[%clk 0:00:16]}  Ka5 {[%clk 0:00:04]} 47. c5 {[%clk 0:00:16]}  b4 {[%clk 0:00:04]} 48. Rf6 {[%clk 0:00:15]}  Kb5 {[%clk 0:00:04]} 49. Rb6+ {[%clk 0:00:14]}  Ka5 {[%clk 0:00:04]} 50. Ra1# {[%clk 0:00:13]} 1-0


[Site "https://www.chess.com"]

[Event "Titled Tuesday Blitz November 01 Early 2022"]
[White "Iliaguev, Nisim"]
[Black "Tokhirjonova, Gulrukhbegim"]
[WhiteFideId "2817276"]
[BlackFideId "14203626"]
[WhiteElo "2264"]
[BlackElo "2236"]
[Result "0-1"]
[Round "06"]
[TimeControl "180+1"]
[Date "2022.11.02"]
[WhiteClock "0:00:15"]
[BlackClock "0:00:36"]

1. d4 {[%clk 0:03:00]}  Nf6 {[%clk 0:02:53]} 2. Nf3 {[%clk 0:03:00]}  d5 {[%clk 0:02:47]} 3. g3 {[%clk 0:02:27]}  g6 {[%clk 0:02:42]} 4. Bg2 {[%clk 0:02:24]}  Bg7 {[%clk 0:02:39]} 5. O-O {[%clk 0:02:24]}  O-O {[%clk 0:02:38]} 6. c4 {[%clk 0:02:25]}  dxc4 {[%clk 0:02:31]} 7. Ne5 {[%clk 0:02:25]}  a5 {[%clk 0:02:22]} 8. Nxc4 {[%clk 0:02:24]}  a4 {[%clk 0:02:22]} 9. Nc3 {[%clk 0:02:24]}  c6 {[%clk 0:02:18]} 10. e4 {[%clk 0:02:21]}  Nbd7 {[%clk 0:02:07]} 11. Be3 {[%clk 0:02:18]}  b5 {[%clk 0:02:04]} 12. Ne5 {[%clk 0:02:18]}  Nxe5 {[%clk 0:02:02]} 13. dxe5 {[%clk 0:02:19]}  Ng4 {[%clk 0:01:59]} 14. Bc5 {[%clk 0:02:16]}  Nxe5 {[%clk 0:01:45]} 15. Qxd8 {[%clk 0:02:15]}  Rxd8 {[%clk 0:01:46]} 16. Bxe7 {[%clk 0:02:15]}  Rd2 {[%clk 0:01:46]} 17. Rad1 {[%clk 0:02:11]}  Rxd1 {[%clk 0:01:44]} 18. Rxd1 {[%clk 0:02:12]}  Be6 {[%clk 0:01:44]} 19. Bf1 {[%clk 0:01:49]}  h5 {[%clk 0:01:25]} 20. f4 {[%clk 0:01:45]}  Ng4 {[%clk 0:01:20]} 21. a3 {[%clk 0:01:39]}  Ne3 {[%clk 0:01:14]} 22. Rd8+ {[%clk 0:01:23]}  Rxd8 {[%clk 0:01:11]} 23. Bxd8 {[%clk 0:01:17]}  Bd4 {[%clk 0:01:10]} 24. Bg2 {[%clk 0:00:40]}  Nc4+ {[%clk 0:01:07]} 25. Kh1 {[%clk 0:00:32]}  Nxb2 {[%clk 0:01:07]} 26. Ne2 {[%clk 0:00:33]}  Bc5 {[%clk 0:01:07]} 27. f5 {[%clk 0:00:33]}  Bc4 {[%clk 0:01:02]} 28. Nf4 {[%clk 0:00:32]}  Bxa3 {[%clk 0:00:57]} 29. e5 {[%clk 0:00:31]}  gxf5 {[%clk 0:00:53]} 30. Bxc6 {[%clk 0:00:31]}  Nd3 {[%clk 0:00:51]} 31. Nxh5 {[%clk 0:00:16]}  Nxe5 {[%clk 0:00:49]} 32. Be8 {[%clk 0:00:16]}  Bc5 {[%clk 0:00:43]} 33. Kg2 {[%clk 0:00:17]}  Bd5+ {[%clk 0:00:42]} 34. Kh3 {[%clk 0:00:17]}  Be6 {[%clk 0:00:42]} 35. Nf4 {[%clk 0:00:16]}  a3 {[%clk 0:00:39]} 36. Bf6 {[%clk 0:00:16]}  Ng4 {[%clk 0:00:38]} 37. Ba1 {[%clk 0:00:16]}  b4 {[%clk 0:00:38]} 38. Nh5 {[%clk 0:00:15]}  b3 {[%clk 0:00:36]} 0-1


[Site "https://www.chess.com"]

[Event "Titled Tuesday Blitz November 01 Early 2022"]
[White "Izuzquiza Gonzalez, Javier"]
[Black "Bilan, Danila"]
[WhiteFideId "3101029"]
[BlackFideId "24161918"]
[WhiteElo "2034"]
[BlackElo "2203"]
[Result "1/2-1/2"]
[Round "06"]
[TimeControl "180+1"]
[Date "2022.11.02"]
[WhiteClock "0:00:20"]
[BlackClock "0:00:04"]

1. d4 {[%clk 0:02:59]}  d5 {[%clk 0:02:59]} 2. c4 {[%clk 0:03:00]}  c6 {[%clk 0:03:00]} 3. Nf3 {[%clk 0:03:00]}  Nf6 {[%clk 0:03:00]} 4. g3 {[%clk 0:03:01]}  Bf5 {[%clk 0:03:00]} 5. Bg2 {[%clk 0:03:00]}  e6 {[%clk 0:03:00]} 6. O-O {[%clk 0:03:00]}  h6 {[%clk 0:02:59]} 7. b3 {[%clk 0:02:59]}  Nbd7 {[%clk 0:02:59]} 8. Nc3 {[%clk 0:03:00]}  Bb4 {[%clk 0:02:58]} 9. Bd2 {[%clk 0:02:59]}  Ba3 {[%clk 0:02:52]} 10. Bc1 {[%clk 0:02:54]}  Bb4 {[%clk 0:02:26]} 11. Bd2 {[%clk 0:02:51]}  Qa5 {[%clk 0:02:25]} 12. Qc1 {[%clk 0:02:37]}  Ba3 {[%clk 0:02:18]} 13. Nb5 {[%clk 0:01:52]}  Bxc1 {[%clk 0:01:04]} 14. Bxa5 {[%clk 0:01:51]}  cxb5 {[%clk 0:01:02]} 15. Raxc1 {[%clk 0:01:50]}  bxc4 {[%clk 0:00:54]} 16. bxc4 {[%clk 0:01:51]}  O-O {[%clk 0:00:48]} 17. cxd5 {[%clk 0:01:46]}  Nxd5 {[%clk 0:00:42]} 18. Nd2 {[%clk 0:01:42]}  Bg6 {[%clk 0:00:32]} 19. e4 {[%clk 0:01:37]}  N5f6 {[%clk 0:00:29]} 20. Rc7 {[%clk 0:01:33]}  b6 {[%clk 0:00:22]} 21. Bb4 {[%clk 0:01:33]}  Rfc8 {[%clk 0:00:21]} 22. Rfc1 {[%clk 0:01:34]}  Rxc7 {[%clk 0:00:21]} 23. Rxc7 {[%clk 0:01:35]}  Nf8 {[%clk 0:00:12]} 24. f4 {[%clk 0:01:18]}  Rd8 {[%clk 0:00:10]} 25. Bc3 {[%clk 0:01:09]}  Ne8 {[%clk 0:00:07]} 26. Rxa7 {[%clk 0:01:01]}  Nd6 {[%clk 0:00:06]} 27. Rc7 {[%clk 0:00:57]}  Nb5 {[%clk 0:00:06]} 28. Rc6 {[%clk 0:00:54]}  Nxd4 {[%clk 0:00:05]} 29. Bxd4 {[%clk 0:00:54]}  Rxd4 {[%clk 0:00:06]} 30. Nb3 {[%clk 0:00:50]}  Rb4 {[%clk 0:00:06]} 31. e5 {[%clk 0:00:40]}  Nd7 {[%clk 0:00:06]} 32. Kf2 {[%clk 0:00:35]}  Nc5 {[%clk 0:00:03]} 33. Nxc5 {[%clk 0:00:34]}  bxc5 {[%clk 0:00:04]} 34. Rc8+ {[%clk 0:00:31]}  Kh7 {[%clk 0:00:04]} 35. Rxc5 {[%clk 0:00:32]}  Rb2+ {[%clk 0:00:03]} 36. Kf1 {[%clk 0:00:32]}  Rxa2 {[%clk 0:00:03]} 37. h4 {[%clk 0:00:23]}  h5 {[%clk 0:00:03]} 38. Bf3 {[%clk 0:00:22]}  Ra3 {[%clk 0:00:03]} 39. Kf2 {[%clk 0:00:22]}  Rb3 {[%clk 0:00:04]} 40. Rc7 {[%clk 0:00:21]}  Rd3 {[%clk 0:00:03]} 41. Rc4 {[%clk 0:00:20]}  Ra3 {[%clk 0:00:03]} 42. Be4 {[%clk 0:00:20]}  Ra2+ {[%clk 0:00:02]} 43. Kf3 {[%clk 0:00:20]}  Ra3+ {[%clk 0:00:03]} 44. Kf2 {[%clk 0:00:20]}  Ra2+ {[%clk 0:00:03]} 45. Kf3 {[%clk 0:00:20]}  Ra3+ {[%clk 0:00:04]} 46. Kf2 {[%clk 0:00:20]} 1/2-1/2


[Site "https://www.chess.com"]

[Event "Titled Tuesday Blitz November 01 Early 2022"]
[White "Jones, Gawain C B"]
[Black "Vlassov, Nikolai"]
[WhiteFideId "409561"]
[BlackFideId "4103360"]
[WhiteElo "2854"]
[BlackElo "2603"]
[Result "1-0"]
[Round "06"]
[TimeControl "180+1"]
[Date "2022.11.02"]
[WhiteClock "0:01:53"]
[BlackClock "0:00:20"]

1. e4 {[%clk 0:02:54]}  c5 {[%clk 0:02:59]} 2. Nf3 {[%clk 0:02:54]}  d6 {[%clk 0:02:59]} 3. Nc3 {[%clk 0:02:54]}  Nf6 {[%clk 0:02:58]} 4. e5 {[%clk 0:02:54]}  dxe5 {[%clk 0:02:57]} 5. Nxe5 {[%clk 0:02:55]}  e6 {[%clk 0:02:56]} 6. g3 {[%clk 0:02:55]}  Nbd7 {[%clk 0:02:53]} 7. Nc4 {[%clk 0:02:55]}  Rb8 {[%clk 0:02:47]} 8. Nb5 {[%clk 0:02:53]}  Nb6 {[%clk 0:02:33]} 9. Nxa7 {[%clk 0:02:46]}  Qd5 {[%clk 0:01:55]} 10. Nxb6 {[%clk 0:02:44]}  Qxh1 {[%clk 0:01:54]} 11. Naxc8 {[%clk 0:02:38]}  c4 {[%clk 0:01:50]} 12. Qe2 {[%clk 0:02:31]}  Bc5 {[%clk 0:01:32]} 13. Qxc4 {[%clk 0:02:30]}  Bxb6 {[%clk 0:01:07]} 14. Qb5+ {[%clk 0:02:29]}  Kd8 {[%clk 0:00:44]} 15. Nxb6 {[%clk 0:02:26]}  Qe4+ {[%clk 0:00:38]} 16. Qe2 {[%clk 0:02:25]}  Qxc2 {[%clk 0:00:38]} 17. d4 {[%clk 0:02:14]}  Qc6 {[%clk 0:00:25]} 18. Nc4 {[%clk 0:02:08]}  Ke7 {[%clk 0:00:22]} 19. b3 {[%clk 0:01:57]}  b5 {[%clk 0:00:21]} 20. Ba3+ {[%clk 0:01:57]}  b4 {[%clk 0:00:22]} 21. Bb2 {[%clk 0:01:56]}  Rhd8 {[%clk 0:00:21]} 22. Rc1 {[%clk 0:01:54]}  Kf8 {[%clk 0:00:20]} 23. Ne5 {[%clk 0:01:54]}  Qa6 {[%clk 0:00:20]} 24. Qxa6 {[%clk 0:01:53]} 1-0


[Site "https://www.chess.com"]

[Event "Titled Tuesday Blitz November 01 Early 2022"]
[White "Jovic, Stanoje"]
[Black "Shuvalov, Evgenij"]
[WhiteFideId "905020"]
[BlackFideId "4187237"]
[WhiteElo "2238"]
[BlackElo "2049"]
[Result "0-1"]
[Round "06"]
[TimeControl "180+1"]
[Date "2022.11.02"]
[WhiteClock "0:01:12"]
[BlackClock "0:01:24"]

1. c4 {[%clk 0:02:58]}  Nf6 {[%clk 0:02:58]} 2. g3 {[%clk 0:02:57]}  c6 {[%clk 0:02:58]} 3. Bg2 {[%clk 0:02:52]}  d5 {[%clk 0:02:58]} 4. cxd5 {[%clk 0:02:51]}  cxd5 {[%clk 0:02:59]} 5. Nf3 {[%clk 0:02:51]}  Nc6 {[%clk 0:02:59]} 6. d4 {[%clk 0:02:51]}  Bf5 {[%clk 0:02:58]} 7. Nc3 {[%clk 0:02:48]}  e6 {[%clk 0:02:58]} 8. O-O {[%clk 0:02:46]}  Bd6 {[%clk 0:02:56]} 9. Bf4 {[%clk 0:02:46]}  Bxf4 {[%clk 0:02:55]} 10. gxf4 {[%clk 0:02:46]}  O-O {[%clk 0:02:56]} 11. Ne5 {[%clk 0:02:44]}  Rc8 {[%clk 0:02:54]} 12. Rc1 {[%clk 0:02:39]}  Qe7 {[%clk 0:02:16]} 13. e3 {[%clk 0:02:38]}  h6 {[%clk 0:02:14]} 14. a3 {[%clk 0:02:37]}  Kh8 {[%clk 0:02:11]} 15. b4 {[%clk 0:02:35]}  Rg8 {[%clk 0:02:11]} 16. Na4 {[%clk 0:02:31]}  Ne4 {[%clk 0:01:53]} 17. f3 {[%clk 0:02:24]}  Nd6 {[%clk 0:01:50]} 18. Nc5 {[%clk 0:02:20]}  Nxe5 {[%clk 0:01:44]} 19. fxe5 {[%clk 0:02:18]}  Nc4 {[%clk 0:01:45]} 20. e4 {[%clk 0:02:07]}  Bh7 {[%clk 0:01:43]} 21. Qd3 {[%clk 0:01:56]}  b6 {[%clk 0:01:41]} 22. Na4 {[%clk 0:01:51]}  Qd7 {[%clk 0:01:35]} 23. Nc3 {[%clk 0:01:15]}  Nxa3 {[%clk 0:01:30]} 24. Nxd5 {[%clk 0:01:13]}  exd5 {[%clk 0:01:25]} 25. Qc3 {[%clk 0:01:12]}  Rxc3 {[%clk 0:01:24]} 0-1


[Site "https://www.chess.com"]

[Event "Titled Tuesday Blitz November 01 Early 2022"]
[White "Kamsky, Gata"]
[Black "Stoyanov, Tsvetan"]
[WhiteFideId "2000024"]
[BlackFideId "2917173"]
[WhiteElo "2666"]
[BlackElo "2349"]
[Result "1-0"]
[Round "06"]
[TimeControl "180+1"]
[Date "2022.11.01"]
[WhiteClock "0:01:27"]
[BlackClock "0:00:04"]

1. e4 {[%clk 0:03:00]}  c5 {[%clk 0:02:59]} 2. Nf3 {[%clk 0:02:59]}  d6 {[%clk 0:03:00]} 3. d4 {[%clk 0:02:58]}  cxd4 {[%clk 0:03:01]} 4. Nxd4 {[%clk 0:02:57]}  Nf6 {[%clk 0:03:00]} 5. Nc3 {[%clk 0:02:56]}  a6 {[%clk 0:03:01]} 6. a4 {[%clk 0:02:55]}  g6 {[%clk 0:02:55]} 7. Be2 {[%clk 0:02:52]}  Bg7 {[%clk 0:02:55]} 8. O-O {[%clk 0:02:51]}  O-O {[%clk 0:02:56]} 9. Be3 {[%clk 0:02:51]}  Nc6 {[%clk 0:02:56]} 10. Qd2 {[%clk 0:02:49]}  Ng4 {[%clk 0:02:47]} 11. Bxg4 {[%clk 0:02:48]}  Bxg4 {[%clk 0:02:44]} 12. Nd5 {[%clk 0:02:31]}  Bd7 {[%clk 0:02:28]} 13. a5 {[%clk 0:02:28]}  Nxd4 {[%clk 0:02:09]} 14. Bxd4 {[%clk 0:02:26]}  Bxd4 {[%clk 0:02:03]} 15. Qxd4 {[%clk 0:02:24]}  Rc8 {[%clk 0:02:01]} 16. c4 {[%clk 0:02:22]}  Bc6 {[%clk 0:01:52]} 17. Nb6 {[%clk 0:02:21]}  Rc7 {[%clk 0:01:52]} 18. Rad1 {[%clk 0:02:17]}  f6 {[%clk 0:01:27]} 19. Rfe1 {[%clk 0:02:09]}  Qe8 {[%clk 0:01:23]} 20. b4 {[%clk 0:02:01]}  Qf7 {[%clk 0:01:01]} 21. f4 {[%clk 0:01:51]}  Qe6 {[%clk 0:00:40]} 22. h3 {[%clk 0:01:43]}  g5 {[%clk 0:00:22]} 23. f5 {[%clk 0:01:40]}  Qe5 {[%clk 0:00:19]} 24. Qxe5 {[%clk 0:01:38]}  fxe5 {[%clk 0:00:18]} 25. g4 {[%clk 0:01:37]}  Kf7 {[%clk 0:00:17]} 26. Kf2 {[%clk 0:01:35]}  h5 {[%clk 0:00:15]} 27. h4 {[%clk 0:01:33]}  gxh4 {[%clk 0:00:14]} 28. g5 {[%clk 0:01:31]}  Rg8 {[%clk 0:00:15]} 29. g6+ {[%clk 0:01:29]}  Kf6 {[%clk 0:00:15]} 30. Ke3 {[%clk 0:01:29]}  h3 {[%clk 0:00:05]} 31. Rh1 {[%clk 0:01:28]}  Be8 {[%clk 0:00:04]} 32. Nd5+ {[%clk 0:01:27]} 1-0


[Site "https://www.chess.com"]

[Event "Titled Tuesday Blitz November 01 Early 2022"]
[White "Kanyamarala, Trisha"]
[Black "Sourath Biswas"]
[WhiteFideId "45004722"]
[BlackFideId "35091484"]
[WhiteElo "2099"]
[BlackElo "2164"]
[Result "0-1"]
[Round "06"]
[TimeControl "180+1"]
[Date "2022.11.02"]
[WhiteClock "0:00:04"]
[BlackClock "0:00:33"]

1. c4 {[%clk 0:03:00]}  Nf6 {[%clk 0:02:59]} 2. Nc3 {[%clk 0:02:59]}  g6 {[%clk 0:02:59]} 3. g3 {[%clk 0:02:59]}  Bg7 {[%clk 0:02:58]} 4. Bg2 {[%clk 0:02:59]}  O-O {[%clk 0:02:59]} 5. Nf3 {[%clk 0:02:56]}  d6 {[%clk 0:02:59]} 6. O-O {[%clk 0:02:56]}  c5 {[%clk 0:02:59]} 7. d3 {[%clk 0:02:56]}  Nc6 {[%clk 0:02:59]} 8. a3 {[%clk 0:02:56]}  d5 {[%clk 0:02:57]} 9. cxd5 {[%clk 0:02:54]}  Nxd5 {[%clk 0:02:57]} 10. Bd2 {[%clk 0:02:54]}  h6 {[%clk 0:02:55]} 11. Qc1 {[%clk 0:02:44]}  Nxc3 {[%clk 0:02:42]} 12. bxc3 {[%clk 0:02:40]}  Kh7 {[%clk 0:02:41]} 13. Rb1 {[%clk 0:02:39]}  Qd6 {[%clk 0:02:01]} 14. Be3 {[%clk 0:02:31]}  b6 {[%clk 0:02:00]} 15. Nd2 {[%clk 0:02:05]}  Ba6 {[%clk 0:01:58]} 16. a4 {[%clk 0:01:50]}  Rac8 {[%clk 0:01:56]} 17. Rd1 {[%clk 0:01:45]}  Rfd8 {[%clk 0:01:53]} 18. h4 {[%clk 0:01:41]}  Qf6 {[%clk 0:01:44]} 19. Ne4 {[%clk 0:01:37]}  Qe6 {[%clk 0:01:44]} 20. h5 {[%clk 0:01:34]}  Nd4 {[%clk 0:01:16]} 21. hxg6+ {[%clk 0:01:29]}  fxg6 {[%clk 0:01:17]} 22. Bxd4 {[%clk 0:01:21]}  cxd4 {[%clk 0:01:17]} 23. c4 {[%clk 0:01:22]}  Qf5 {[%clk 0:01:04]} 24. Kh2 {[%clk 0:01:20]}  Qh5+ {[%clk 0:01:03]} 25. Bh3 {[%clk 0:01:07]}  Rc7 {[%clk 0:01:04]} 26. Kg2 {[%clk 0:00:58]}  Qxe2 {[%clk 0:01:02]} 27. Rd2 {[%clk 0:00:50]}  Qh5 {[%clk 0:01:01]} 28. Qa3 {[%clk 0:00:45]}  Bb7 {[%clk 0:01:00]} 29. Rh1 {[%clk 0:00:38]}  Rf8 {[%clk 0:00:47]} 30. f4 {[%clk 0:00:26]}  Qa5 {[%clk 0:00:37]} 31. Re2 {[%clk 0:00:22]}  Qc3 {[%clk 0:00:38]} 32. Qxc3 {[%clk 0:00:17]}  dxc3 {[%clk 0:00:39]} 33. Kf2 {[%clk 0:00:15]}  Rd8 {[%clk 0:00:37]} 34. Rd1 {[%clk 0:00:07]}  Rxc4 {[%clk 0:00:35]} 35. Bg2 {[%clk 0:00:05]}  Rxa4 {[%clk 0:00:34]} 36. Rc2 {[%clk 0:00:04]}  Bxe4 {[%clk 0:00:33]} 37. Bxe4 {[%clk 0:00:04]}  Rxe4 {[%clk 0:00:33]} 0-1


[Site "https://www.chess.com"]

[Event "Titled Tuesday Blitz November 01 Early 2022"]
[White "Kotepalli, Sai Nirupama"]
[Black "Barria Zuniga, Daniel"]
[WhiteFideId "5039444"]
[BlackFideId "3400816"]
[WhiteElo "2400"]
[BlackElo "2414"]
[Result "0-1"]
[Round "06"]
[TimeControl "180+1"]
[Date "2022.11.02"]
[WhiteClock "0:00:25"]
[BlackClock "0:01:06"]

1. e4 {[%clk 0:03:00]}  g6 {[%clk 0:02:55]} 2. d3 {[%clk 0:03:00]}  Bg7 {[%clk 0:02:55]} 3. Nf3 {[%clk 0:02:59]}  c5 {[%clk 0:02:55]} 4. g3 {[%clk 0:02:59]}  Nc6 {[%clk 0:02:54]} 5. Bg2 {[%clk 0:02:59]}  e5 {[%clk 0:02:48]} 6. O-O {[%clk 0:02:59]}  Nge7 {[%clk 0:02:49]} 7. c3 {[%clk 0:02:58]}  O-O {[%clk 0:02:49]} 8. a3 {[%clk 0:02:56]}  a5 {[%clk 0:02:40]} 9. Nh4 {[%clk 0:02:55]}  d5 {[%clk 0:02:35]} 10. f4 {[%clk 0:02:51]}  exf4 {[%clk 0:02:30]} 11. Bxf4 {[%clk 0:02:41]}  h6 {[%clk 0:02:27]} 12. Nf3 {[%clk 0:02:27]}  Be6 {[%clk 0:02:23]} 13. h4 {[%clk 0:02:23]}  Qd7 {[%clk 0:02:18]} 14. Nbd2 {[%clk 0:02:13]}  Rad8 {[%clk 0:02:15]} 15. Qe2 {[%clk 0:02:11]}  Rfe8 {[%clk 0:02:12]} 16. Rad1 {[%clk 0:02:00]}  Bg4 {[%clk 0:02:09]} 17. Qf2 {[%clk 0:01:57]}  d4 {[%clk 0:02:04]} 18. c4 {[%clk 0:01:53]}  f6 {[%clk 0:02:02]} 19. Nb3 {[%clk 0:01:50]}  b6 {[%clk 0:02:02]} 20. Rde1 {[%clk 0:01:49]}  g5 {[%clk 0:01:56]} 21. Bd2 {[%clk 0:01:41]}  a4 {[%clk 0:01:54]} 22. Nc1 {[%clk 0:01:40]}  Ng6 {[%clk 0:01:54]} 23. Nh2 {[%clk 0:01:37]}  Be6 {[%clk 0:01:51]} 24. Ne2 {[%clk 0:01:32]}  Nce5 {[%clk 0:01:46]} 25. Nc1 {[%clk 0:01:29]}  b5 {[%clk 0:01:45]} 26. cxb5 {[%clk 0:01:10]}  Qxb5 {[%clk 0:01:46]} 27. Qe2 {[%clk 0:01:00]}  Qxb2 {[%clk 0:01:35]} 28. hxg5 {[%clk 0:00:52]}  fxg5 {[%clk 0:01:32]} 29. Nf3 {[%clk 0:00:50]}  Bg4 {[%clk 0:01:25]} 30. Qd1 {[%clk 0:00:41]}  Rf8 {[%clk 0:01:21]} 31. Rf2 {[%clk 0:00:32]}  Nxf3+ {[%clk 0:01:15]} 32. Bxf3 {[%clk 0:00:26]}  Bxf3 {[%clk 0:01:13]} 33. Rxf3 {[%clk 0:00:27]}  Rxf3 {[%clk 0:01:11]} 34. Qxf3 {[%clk 0:00:26]}  Qxd2 {[%clk 0:01:10]} 35. Rf1 {[%clk 0:00:25]}  Rf8 {[%clk 0:01:06]} 0-1


[Site "https://www.chess.com"]

[Event "Titled Tuesday Blitz November 01 Early 2022"]
[White "Kowalczyk, Pawel"]
[Black "Salem, A.R. Saleh"]
[WhiteFideId "1130641"]
[BlackFideId "9301348"]
[WhiteElo "2324"]
[BlackElo "2628"]
[Result "1-0"]
[Round "06"]
[TimeControl "180+1"]
[Date "2022.11.01"]
[WhiteClock "0:00:22"]
[BlackClock "0:00:04"]

1. e4 {[%clk 0:03:00]}  c5 {[%clk 0:02:59]} 2. Ne2 {[%clk 0:03:00]}  d6 {[%clk 0:02:58]} 3. g3 {[%clk 0:03:01]}  Nf6 {[%clk 0:02:55]} 4. Bg2 {[%clk 0:03:01]}  g6 {[%clk 0:02:55]} 5. c3 {[%clk 0:03:00]}  Bg7 {[%clk 0:02:55]} 6. d4 {[%clk 0:03:00]}  O-O {[%clk 0:02:54]} 7. dxc5 {[%clk 0:02:59]}  dxc5 {[%clk 0:02:54]} 8. Qxd8 {[%clk 0:02:58]}  Rxd8 {[%clk 0:02:55]} 9. Be3 {[%clk 0:02:57]}  Ng4 {[%clk 0:02:30]} 10. Bxc5 {[%clk 0:02:45]}  Ne5 {[%clk 0:02:31]} 11. O-O {[%clk 0:02:44]}  Nbc6 {[%clk 0:02:28]} 12. Nd4 {[%clk 0:02:16]}  b6 {[%clk 0:02:19]} 13. Nxc6 {[%clk 0:02:14]}  Nxc6 {[%clk 0:02:20]} 14. Be3 {[%clk 0:02:15]}  Ba6 {[%clk 0:02:20]} 15. Re1 {[%clk 0:02:14]}  Ne5 {[%clk 0:02:20]} 16. Nd2 {[%clk 0:02:06]}  Nd3 {[%clk 0:02:16]} 17. Reb1 {[%clk 0:02:06]}  Nxb2 {[%clk 0:02:05]} 18. Rxb2 {[%clk 0:02:05]}  Bxc3 {[%clk 0:02:05]} 19. Rab1 {[%clk 0:02:03]}  Rac8 {[%clk 0:01:51]} 20. h4 {[%clk 0:01:47]}  Bd3 {[%clk 0:01:46]} 21. Nb3 {[%clk 0:01:36]}  Be5 {[%clk 0:01:38]} 22. f4 {[%clk 0:01:22]}  Bg7 {[%clk 0:01:24]} 23. e5 {[%clk 0:01:21]}  Bxb1 {[%clk 0:01:22]} 24. Rxb1 {[%clk 0:01:22]}  Rc3 {[%clk 0:01:21]} 25. Re1 {[%clk 0:01:15]}  e6 {[%clk 0:01:20]} 26. Kf2 {[%clk 0:01:12]}  Bf8 {[%clk 0:01:19]} 27. Re2 {[%clk 0:01:08]}  Ba3 {[%clk 0:01:18]} 28. Nd4 {[%clk 0:01:06]}  Bc5 {[%clk 0:01:09]} 29. Nc2 {[%clk 0:00:56]}  Rdd3 {[%clk 0:01:03]} 30. Bxc5 {[%clk 0:00:55]}  bxc5 {[%clk 0:01:03]} 31. Ne3 {[%clk 0:00:54]}  h5 {[%clk 0:00:59]} 32. Be4 {[%clk 0:00:54]}  Rd4 {[%clk 0:01:00]} 33. Bc2 {[%clk 0:00:46]}  c4 {[%clk 0:00:56]} 34. a4 {[%clk 0:00:43]}  Ra3 {[%clk 0:00:54]} 35. Nf1 {[%clk 0:00:33]}  c3 {[%clk 0:00:37]} 36. Ke3 {[%clk 0:00:32]}  Rb4 {[%clk 0:00:36]} 37. Kd3 {[%clk 0:00:30]}  Rb8 {[%clk 0:00:24]} 38. Re4 {[%clk 0:00:28]}  Ra2 {[%clk 0:00:16]} 39. Ne3 {[%clk 0:00:28]}  Rd8+ {[%clk 0:00:15]} 40. Rd4 {[%clk 0:00:28]}  Rxd4+ {[%clk 0:00:14]} 41. Kxd4 {[%clk 0:00:28]}  Ra1 {[%clk 0:00:11]} 42. Nd1 {[%clk 0:00:28]}  Ra3 {[%clk 0:00:08]} 43. Nxc3 {[%clk 0:00:28]}  a5 {[%clk 0:00:08]} 44. Kc4 {[%clk 0:00:28]}  Kf8 {[%clk 0:00:08]} 45. Bb3 {[%clk 0:00:27]}  Ke7 {[%clk 0:00:06]} 46. Na2 {[%clk 0:00:21]}  f6 {[%clk 0:00:04]} 47. Kc3 {[%clk 0:00:21]}  fxe5 {[%clk 0:00:04]} 48. fxe5 {[%clk 0:00:22]} 1-0


[Site "https://www.chess.com"]